[Event "Titled Tuesday Blitz October 11 Early 2022"]
[White "Barria Zuniga, Daniel"]
[Black "Yurovskykh, Oleksandr"]
[WhiteFideId "3400816"]
[BlackFideId "14134020"]
[WhiteElo "2414"]
[BlackElo "2303"]
[Result "0-1"]
[Round "10"]
[TimeControl "180+1"]
[Date "2022.10.12"]
[WhiteClock "0:00:02"]
[BlackClock "0:00:06"]

1. d4 {[%clk 0:03:00]}  d5 {[%clk 0:02:59]} 2. c4 {[%clk 0:03:00]}  e6 {[%clk 0:03:00]} 3. Nf3 {[%clk 0:02:58]}  Nf6 {[%clk 0:03:00]} 4. Nc3 {[%clk 0:02:59]}  c5 {[%clk 0:03:00]} 5. Bg5 {[%clk 0:02:58]}  cxd4 {[%clk 0:02:54]} 6. Qxd4 {[%clk 0:02:59]}  Nc6 {[%clk 0:02:53]} 7. Bxf6 {[%clk 0:02:57]}  gxf6 {[%clk 0:02:50]} 8. Qh4 {[%clk 0:02:56]}  d4 {[%clk 0:02:42]} 9. O-O-O {[%clk 0:02:56]}  e5 {[%clk 0:02:32]} 10. e3 {[%clk 0:02:53]}  Be7 {[%clk 0:02:09]} 11. exd4 {[%clk 0:02:46]}  f5 {[%clk 0:02:07]} 12. Qg3 {[%clk 0:02:38]}  e4 {[%clk 0:02:04]} 13. d5 {[%clk 0:02:21]}  Nb4 {[%clk 0:02:00]} 14. Ne5 {[%clk 0:01:24]}  Bf6 {[%clk 0:01:55]} 15. Kb1 {[%clk 0:01:08]}  Qd6 {[%clk 0:01:04]} 16. f4 {[%clk 0:01:06]}  Bd7 {[%clk 0:00:58]} 17. a3 {[%clk 0:01:00]}  Na6 {[%clk 0:00:56]} 18. Be2 {[%clk 0:00:48]}  b6 {[%clk 0:00:49]} 19. b4 {[%clk 0:00:26]}  Nc7 {[%clk 0:00:45]} 20. Bh5 {[%clk 0:00:22]}  Rf8 {[%clk 0:00:40]} 21. Rhe1 {[%clk 0:00:20]}  a5 {[%clk 0:00:25]} 22. Na2 {[%clk 0:00:15]}  axb4 {[%clk 0:00:24]} 23. axb4 {[%clk 0:00:14]}  Rxa2 {[%clk 0:00:23]} 24. Kxa2 {[%clk 0:00:13]}  Qxb4 {[%clk 0:00:23]} 25. Qa3 {[%clk 0:00:09]}  Qxa3+ {[%clk 0:00:20]} 26. Kxa3 {[%clk 0:00:09]}  Na6 {[%clk 0:00:19]} 27. Kb3 {[%clk 0:00:03]}  Nc5+ {[%clk 0:00:19]} 28. Kb4 {[%clk 0:00:04]}  Ke7 {[%clk 0:00:17]} 29. Ra1 {[%clk 0:00:04]}  Kd6 {[%clk 0:00:17]} 30. Ra7 {[%clk 0:00:03]}  Bxe5 {[%clk 0:00:16]} 31. fxe5+ {[%clk 0:00:04]}  Kxe5 {[%clk 0:00:16]} 32. Rea1 {[%clk 0:00:03]}  Kd6 {[%clk 0:00:17]} 33. R7a3 {[%clk 0:00:02]}  f6 {[%clk 0:00:17]} 34. Kc3 {[%clk 0:00:02]}  Rg8 {[%clk 0:00:18]} 35. g3 {[%clk 0:00:02]}  f4 {[%clk 0:00:18]} 36. gxf4 {[%clk 0:00:02]}  Rg2 {[%clk 0:00:19]} 37. Kd4 {[%clk 0:00:02]}  Rxh2 {[%clk 0:00:18]} 38. Bd1 {[%clk 0:00:02]}  Rd2+ {[%clk 0:00:18]} 39. Ke3 {[%clk 0:00:02]}  Rh2 {[%clk 0:00:18]} 40. Be2 {[%clk 0:00:02]}  Rh3+ {[%clk 0:00:18]} 41. Kd4 {[%clk 0:00:02]}  Nb3+ {[%clk 0:00:15]} 42. Rxb3 {[%clk 0:00:03]}  Rxb3 {[%clk 0:00:15]} 43. Ra6 {[%clk 0:00:03]}  f5 {[%clk 0:00:13]} 44. Rxb6+ {[%clk 0:00:03]}  Rxb6 {[%clk 0:00:13]} 45. c5+ {[%clk 0:00:03]}  Kc7 {[%clk 0:00:14]} 46. cxb6+ {[%clk 0:00:03]}  Kxb6 {[%clk 0:00:14]} 47. Ke5 {[%clk 0:00:04]}  Kc5 {[%clk 0:00:13]} 48. d6 {[%clk 0:00:03]}  h6 {[%clk 0:00:12]} 49. Bh5 {[%clk 0:00:03]}  Bc8 {[%clk 0:00:13]} 50. Be8 {[%clk 0:00:02]}  e3 {[%clk 0:00:11]} 51. Bh5 {[%clk 0:00:02]}  Bd7 {[%clk 0:00:11]} 52. Be2 {[%clk 0:00:02]}  Bb5 {[%clk 0:00:10]} 53. Bxb5 {[%clk 0:00:01]}  Kxb5 {[%clk 0:00:10]} 54. d7 {[%clk 0:00:02]}  e2 {[%clk 0:00:10]} 55. d8=Q {[%clk 0:00:02]}  e1=Q+ {[%clk 0:00:11]} 56. Kxf5 {[%clk 0:00:02]}  Qh1 {[%clk 0:00:06]} 0-1


[Site "https://www.chess.com"]

[Event "Titled Tuesday Blitz October 11 Early 2022"]
[White "Begunov, Konstantin"]
[Black "Villamayor, Buenaventura"]
[WhiteFideId "4118510"]
[BlackFideId "5200393"]
[WhiteElo "2225"]
[BlackElo "2301"]
[Result "0-1"]
[Round "10"]
[TimeControl "180+1"]
[Date "2022.10.12"]
[WhiteClock "0:00:04"]
[BlackClock "0:01:36"]

1. d4 {[%clk 0:02:55]}  Nf6 {[%clk 0:02:59]} 2. c4 {[%clk 0:02:54]}  e6 {[%clk 0:03:00]} 3. Nf3 {[%clk 0:02:53]}  b6 {[%clk 0:03:00]} 4. g3 {[%clk 0:02:53]}  Ba6 {[%clk 0:03:00]} 5. Qa4 {[%clk 0:02:53]}  Bb7 {[%clk 0:02:58]} 6. Bg2 {[%clk 0:02:53]}  c5 {[%clk 0:02:57]} 7. dxc5 {[%clk 0:02:53]}  Bxc5 {[%clk 0:02:56]} 8. O-O {[%clk 0:02:54]}  O-O {[%clk 0:02:54]} 9. Nc3 {[%clk 0:02:54]}  h6 {[%clk 0:02:51]} 10. Rd1 {[%clk 0:02:54]}  Qe7 {[%clk 0:02:47]} 11. Bf4 {[%clk 0:02:48]}  Nc6 {[%clk 0:02:45]} 12. a3 {[%clk 0:02:45]}  a5 {[%clk 0:02:42]} 13. Qc2 {[%clk 0:02:40]}  d6 {[%clk 0:02:40]} 14. Na4 {[%clk 0:02:33]}  e5 {[%clk 0:02:38]} 15. Nxc5 {[%clk 0:02:31]}  bxc5 {[%clk 0:02:37]} 16. Bc1 {[%clk 0:01:30]}  Nd4 {[%clk 0:02:37]} 17. Nxd4 {[%clk 0:01:30]}  cxd4 {[%clk 0:02:34]} 18. Bxb7 {[%clk 0:01:27]}  Qxb7 {[%clk 0:02:33]} 19. e3 {[%clk 0:01:28]}  Rfe8 {[%clk 0:02:29]} 20. exd4 {[%clk 0:01:23]}  exd4 {[%clk 0:02:30]} 21. Bf4 {[%clk 0:01:21]}  Qb6 {[%clk 0:02:20]} 22. Rab1 {[%clk 0:00:52]}  a4 {[%clk 0:02:16]} 23. Qd3 {[%clk 0:00:49]}  Rab8 {[%clk 0:02:07]} 24. Qxd4 {[%clk 0:00:47]}  Re1+ {[%clk 0:02:06]} 25. Kg2 {[%clk 0:00:43]}  Qxd4 {[%clk 0:02:05]} 26. Rxd4 {[%clk 0:00:41]}  Rxb1 {[%clk 0:02:05]} 27. Bxd6 {[%clk 0:00:39]}  R8xb2 {[%clk 0:02:04]} 28. c5 {[%clk 0:00:40]}  Rc1 {[%clk 0:02:04]} 29. Be5 {[%clk 0:00:36]}  Ra2 {[%clk 0:01:59]} 30. Rxa4 {[%clk 0:00:28]}  Rxc5 {[%clk 0:01:57]} 31. Ra8+ {[%clk 0:00:20]}  Kh7 {[%clk 0:01:57]} 32. Bf4 {[%clk 0:00:18]}  Rcc2 {[%clk 0:01:54]} 33. Be3 {[%clk 0:00:18]}  Ng4 {[%clk 0:01:53]} 34. Bd4 {[%clk 0:00:18]}  Nxf2 {[%clk 0:01:52]} 35. Kf3 {[%clk 0:00:17]}  Nd3 {[%clk 0:01:50]} 36. Ra7 {[%clk 0:00:15]}  Rxh2 {[%clk 0:01:48]} 37. Ke4 {[%clk 0:00:11]}  Nf2+ {[%clk 0:01:43]} 38. Kf3 {[%clk 0:00:11]}  Kg6 {[%clk 0:01:36]} 39. Ra6+ {[%clk 0:00:10]}  f6 {[%clk 0:01:36]} 40. Bc5 {[%clk 0:00:11]}  h5 {[%clk 0:01:35]} 41. Ra7 {[%clk 0:00:10]}  Ng4 {[%clk 0:01:36]} 42. Bf8 {[%clk 0:00:09]}  Rae2 {[%clk 0:01:35]} 43. Rxg7+ {[%clk 0:00:06]}  Kf5 {[%clk 0:01:35]} 44. Bc5 {[%clk 0:00:05]}  Rhf2+ {[%clk 0:01:35]} 45. Bxf2 {[%clk 0:00:04]}  Rxf2# {[%clk 0:01:36]} 0-1


[Site "https://www.chess.com"]

[Event "Titled Tuesday Blitz October 11 Early 2022"]
[White "Buscar, Michael"]
[Black "Yaniuk, Volodymyr"]
[WhiteFideId "2603616"]
[BlackFideId "14133083"]
[WhiteElo "2010"]
[BlackElo "2141"]
[Result "1-0"]
[Round "10"]
[TimeControl "180+1"]
[Date "2022.10.12"]
[WhiteClock "0:00:06"]
[BlackClock "0:00:08"]

1. Nf3 {[%clk 0:02:55]}  d5 {[%clk 0:02:57]} 2. g3 {[%clk 0:02:55]}  Nc6 {[%clk 0:02:53]} 3. Bg2 {[%clk 0:02:56]}  Nf6 {[%clk 0:02:54]} 4. d4 {[%clk 0:02:55]}  Bf5 {[%clk 0:02:52]} 5. O-O {[%clk 0:02:54]}  e6 {[%clk 0:02:52]} 6. c4 {[%clk 0:02:54]}  Be7 {[%clk 0:02:50]} 7. Bf4 {[%clk 0:02:44]}  O-O {[%clk 0:02:47]} 8. Nbd2 {[%clk 0:02:44]}  h6 {[%clk 0:02:47]} 9. Rc1 {[%clk 0:02:44]}  Bd6 {[%clk 0:02:45]} 10. c5 {[%clk 0:02:06]}  Bxf4 {[%clk 0:02:42]} 11. gxf4 {[%clk 0:02:07]}  Ne4 {[%clk 0:02:42]} 12. e3 {[%clk 0:02:02]}  Nxd2 {[%clk 0:02:39]} 13. Qxd2 {[%clk 0:01:58]}  Be4 {[%clk 0:02:38]} 14. Ne1 {[%clk 0:01:55]}  f5 {[%clk 0:02:37]} 15. f3 {[%clk 0:01:50]}  Qh4 {[%clk 0:02:22]} 16. Qf2 {[%clk 0:01:42]}  Qh5 {[%clk 0:02:22]} 17. fxe4 {[%clk 0:01:36]}  fxe4 {[%clk 0:02:22]} 18. a3 {[%clk 0:01:32]}  Rf6 {[%clk 0:02:22]} 19. Kh1 {[%clk 0:01:32]}  Raf8 {[%clk 0:02:21]} 20. Qg3 {[%clk 0:01:10]}  Kh8 {[%clk 0:02:20]} 21. Rg1 {[%clk 0:01:06]}  Ne7 {[%clk 0:02:19]} 22. Bh3 {[%clk 0:01:05]}  R8f7 {[%clk 0:02:18]} 23. Rc2 {[%clk 0:01:04]}  Qd1 {[%clk 0:02:14]} 24. Rcg2 {[%clk 0:01:02]}  Rg6 {[%clk 0:02:05]} 25. Qh4 {[%clk 0:00:53]}  Rxg2 {[%clk 0:02:03]} 26. Nxg2 {[%clk 0:00:44]}  Qd2 {[%clk 0:01:45]} 27. Bxe6 {[%clk 0:00:44]}  Rf6 {[%clk 0:01:45]} 28. f5 {[%clk 0:00:39]}  b6 {[%clk 0:01:42]} 29. cxb6 {[%clk 0:00:38]}  axb6 {[%clk 0:01:42]} 30. Qg3 {[%clk 0:00:36]}  c5 {[%clk 0:01:33]} 31. Qb8+ {[%clk 0:00:29]}  Kh7 {[%clk 0:01:32]} 32. Qxb6 {[%clk 0:00:27]}  Nxf5 {[%clk 0:01:22]} 33. Bxf5+ {[%clk 0:00:27]}  Rxf5 {[%clk 0:01:23]} 34. Nf4 {[%clk 0:00:20]}  Rg5 {[%clk 0:01:03]} 35. Rxg5 {[%clk 0:00:19]}  hxg5 {[%clk 0:01:04]} 36. Qg6+ {[%clk 0:00:19]}  Kg8 {[%clk 0:01:04]} 37. Qe8+ {[%clk 0:00:17]}  Kh7 {[%clk 0:01:04]} 38. Qh5+ {[%clk 0:00:17]}  Kg8 {[%clk 0:01:04]} 39. Qxg5 {[%clk 0:00:17]}  Qxe3 {[%clk 0:00:49]} 40. Qxd5+ {[%clk 0:00:17]}  Kh7 {[%clk 0:00:48]} 41. Qg5 {[%clk 0:00:16]}  cxd4 {[%clk 0:00:45]} 42. Qg6+ {[%clk 0:00:13]}  Kg8 {[%clk 0:00:45]} 43. Qe8+ {[%clk 0:00:13]}  Kh7 {[%clk 0:00:45]} 44. Qg6+ {[%clk 0:00:12]}  Kg8 {[%clk 0:00:45]} 45. Qe8+ {[%clk 0:00:11]}  Kh7 {[%clk 0:00:45]} 46. Qh5+ {[%clk 0:00:11]}  Kg8 {[%clk 0:00:45]} 47. Qd5+ {[%clk 0:00:10]}  Kh8 {[%clk 0:00:45]} 48. Ng6+ {[%clk 0:00:10]}  Kh7 {[%clk 0:00:45]} 49. Qh5+ {[%clk 0:00:09]}  Kg8 {[%clk 0:00:46]} 50. Ne7+ {[%clk 0:00:06]}  Kf8 {[%clk 0:00:45]} 51. Nf5 {[%clk 0:00:06]}  Qc1+ {[%clk 0:00:41]} 52. Kg2 {[%clk 0:00:06]}  Qxb2+ {[%clk 0:00:41]} 53. Kg3 {[%clk 0:00:06]}  Qxa3+ {[%clk 0:00:35]} 54. Kf4 {[%clk 0:00:06]}  e3 {[%clk 0:00:14]} 55. Qh8+ {[%clk 0:00:05]}  Kf7 {[%clk 0:00:13]} 56. Qxg7+ {[%clk 0:00:05]}  Ke8 {[%clk 0:00:14]} 57. Qg8+ {[%clk 0:00:05]}  Kd7 {[%clk 0:00:14]} 58. Qd5+ {[%clk 0:00:05]}  Ke8 {[%clk 0:00:13]} 59. Qxd4 {[%clk 0:00:05]}  e2 {[%clk 0:00:13]} 60. Qe5+ {[%clk 0:00:06]}  Kf7 {[%clk 0:00:13]} 61. Qxe2 {[%clk 0:00:06]}  Qh3 {[%clk 0:00:10]} 62. Qe7+ {[%clk 0:00:05]}  Kg8 {[%clk 0:00:08]} 63. Qg7# {[%clk 0:00:06]} 1-0


[Site "https://www.chess.com"]

[Event "Titled Tuesday Blitz October 11 Early 2022"]
[White "Carbone, Diego"]
[Black "Dushyant Sharma"]
[WhiteFideId "3002179"]
[BlackFideId "25065130"]
[WhiteElo "2243"]
[BlackElo "2270"]
[Result "0-1"]
[Round "10"]
[TimeControl "180+1"]
[Date "2022.10.12"]
[WhiteClock "0:00:01"]
[BlackClock "0:01:39"]

1. d4 {[%clk 0:03:00]}  d5 {[%clk 0:03:00]} 2. c4 {[%clk 0:02:57]}  e6 {[%clk 0:03:00]} 3. Nf3 {[%clk 0:02:57]}  Nf6 {[%clk 0:03:00]} 4. g3 {[%clk 0:02:57]}  Be7 {[%clk 0:03:01]} 5. Bg2 {[%clk 0:02:58]}  O-O {[%clk 0:03:01]} 6. O-O {[%clk 0:02:59]}  dxc4 {[%clk 0:03:02]} 7. Qc2 {[%clk 0:02:59]}  c5 {[%clk 0:03:02]} 8. dxc5 {[%clk 0:02:57]}  Nc6 {[%clk 0:03:03]} 9. Nbd2 {[%clk 0:02:29]}  e5 {[%clk 0:03:01]} 10. Nxc4 {[%clk 0:02:13]}  e4 {[%clk 0:03:00]} 11. Nfe5 {[%clk 0:02:07]}  Nd4 {[%clk 0:02:44]} 12. Qd1 {[%clk 0:01:54]}  Bxc5 {[%clk 0:02:34]} 13. a3 {[%clk 0:01:40]}  b5 {[%clk 0:02:32]} 14. b4 {[%clk 0:01:27]}  bxc4 {[%clk 0:02:24]} 15. bxc5 {[%clk 0:01:26]}  Nb3 {[%clk 0:02:23]} 16. Rb1 {[%clk 0:01:23]}  Nxc5 {[%clk 0:02:15]} 17. Nxc4 {[%clk 0:01:16]}  Ba6 {[%clk 0:02:15]} 18. Be3 {[%clk 0:00:49]}  Rc8 {[%clk 0:02:14]} 19. Nd6 {[%clk 0:00:47]}  Bxe2 {[%clk 0:02:09]} 20. Qxe2 {[%clk 0:00:32]}  Qxd6 {[%clk 0:02:09]} 21. Rfd1 {[%clk 0:00:25]}  Qe6 {[%clk 0:02:07]} 22. Rb5 {[%clk 0:00:16]}  Na4 {[%clk 0:02:07]} 23. Bd4 {[%clk 0:00:12]}  Nc3 {[%clk 0:02:07]} 24. Bxc3 {[%clk 0:00:12]}  Rxc3 {[%clk 0:02:08]} 25. a4 {[%clk 0:00:12]}  e3 {[%clk 0:02:08]} 26. fxe3 {[%clk 0:00:09]}  Rxe3 {[%clk 0:02:09]} 27. Qb2 {[%clk 0:00:04]}  h6 {[%clk 0:02:04]} 28. Rf1 {[%clk 0:00:03]}  Re8 {[%clk 0:02:02]} 29. Rb7 {[%clk 0:00:03]}  Re2 {[%clk 0:02:02]} 30. Qb3 {[%clk 0:00:02]}  Qe3+ {[%clk 0:01:49]} 31. Qxe3 {[%clk 0:00:02]}  R8xe3 {[%clk 0:01:50]} 32. a5 {[%clk 0:00:02]}  Ra3 {[%clk 0:01:50]} 33. Rxa7 {[%clk 0:00:02]}  Raa2 {[%clk 0:01:51]} 34. Bf3 {[%clk 0:00:01]}  Rxh2 {[%clk 0:01:49]} 35. a6 {[%clk 0:00:02]}  Rh3 {[%clk 0:01:47]} 36. Ra8+ {[%clk 0:00:03]}  Kh7 {[%clk 0:01:47]} 37. Rf2 {[%clk 0:00:01]}  Rxg3+ {[%clk 0:01:47]} 38. Bg2 {[%clk 0:00:01]}  Ra1+ {[%clk 0:01:42]} 39. Kh2 {[%clk 0:00:01]}  Rga3 {[%clk 0:01:39]} 40. Rc2 {[%clk 0:00:01]}  Ng4# {[%clk 0:01:39]} 0-1


[Site "https://www.chess.com"]

[Event "Titled Tuesday Blitz October 11 Early 2022"]
[White "Carlsen, Magnus"]
[Black "Rustemov, Alexander"]
[WhiteFideId "1503014"]
[BlackFideId "4119002"]
[WhiteElo "2830"]
[BlackElo "2859"]
[Result "1-0"]
[Round "10"]
[TimeControl "180+1"]
[Date "2022.10.11"]
[WhiteClock "0:01:38"]
[BlackClock "0:00:02"]

1. g4 {[%clk 0:03:00]}  d5 {[%clk 0:02:59]} 2. h3 {[%clk 0:03:00]}  c6 {[%clk 0:02:59]} 3. d3 {[%clk 0:02:58]}  e5 {[%clk 0:02:58]} 4. Nf3 {[%clk 0:02:57]}  Bd6 {[%clk 0:02:53]} 5. c4 {[%clk 0:02:58]}  Ne7 {[%clk 0:02:48]} 6. Nc3 {[%clk 0:02:57]}  O-O {[%clk 0:02:46]} 7. Bg2 {[%clk 0:02:51]}  d4 {[%clk 0:02:19]} 8. Ne4 {[%clk 0:02:51]}  c5 {[%clk 0:02:19]} 9. b4 {[%clk 0:02:50]}  cxb4 {[%clk 0:02:16]} 10. a3 {[%clk 0:02:50]}  Nbc6 {[%clk 0:02:13]} 11. Nxd6 {[%clk 0:02:51]}  Qxd6 {[%clk 0:02:13]} 12. axb4 {[%clk 0:02:52]}  Nxb4 {[%clk 0:02:09]} 13. Ba3 {[%clk 0:02:50]}  Nec6 {[%clk 0:02:08]} 14. Nd2 {[%clk 0:02:49]}  a5 {[%clk 0:02:06]} 15. Ne4 {[%clk 0:02:40]}  Qc7 {[%clk 0:02:04]} 16. Ng3 {[%clk 0:02:38]}  Bd7 {[%clk 0:01:48]} 17. Be4 {[%clk 0:02:34]}  Rae8 {[%clk 0:01:33]} 18. Qd2 {[%clk 0:02:33]}  b6 {[%clk 0:01:31]} 19. Kf1 {[%clk 0:02:29]}  f6 {[%clk 0:01:30]} 20. Kg2 {[%clk 0:02:29]}  g6 {[%clk 0:01:25]} 21. Qh6 {[%clk 0:02:27]}  Be6 {[%clk 0:01:15]} 22. h4 {[%clk 0:02:14]}  Qg7 {[%clk 0:01:12]} 23. Qxg7+ {[%clk 0:02:12]}  Kxg7 {[%clk 0:01:12]} 24. Bxc6 {[%clk 0:02:12]}  Nxc6 {[%clk 0:01:08]} 25. Bxf8+ {[%clk 0:02:11]}  Rxf8 {[%clk 0:01:08]} 26. Rhb1 {[%clk 0:02:12]}  Nb4 {[%clk 0:00:58]} 27. g5 {[%clk 0:02:07]}  f5 {[%clk 0:00:53]} 28. Nf1 {[%clk 0:02:02]}  e4 {[%clk 0:00:51]} 29. Nd2 {[%clk 0:01:57]}  Bd7 {[%clk 0:00:46]} 30. Nb3 {[%clk 0:01:48]}  exd3 {[%clk 0:00:42]} 31. exd3 {[%clk 0:01:48]}  Nxd3 {[%clk 0:00:41]} 32. Nxd4 {[%clk 0:01:47]}  Nb4 {[%clk 0:00:40]} 33. c5 {[%clk 0:01:45]}  bxc5 {[%clk 0:00:39]} 34. Rxa5 {[%clk 0:01:44]}  Nd3 {[%clk 0:00:29]} 35. Rb7 {[%clk 0:01:44]}  Rf7 {[%clk 0:00:27]} 36. Raa7 {[%clk 0:01:43]}  cxd4 {[%clk 0:00:02]} 37. Rxd7 {[%clk 0:01:43]}  Ne5 {[%clk 0:00:01]} 38. Rxf7+ {[%clk 0:01:42]}  Nxf7 {[%clk 0:00:02]} 39. Rd7 {[%clk 0:01:40]}  d3 {[%clk 0:00:02]} 40. Kg3 {[%clk 0:01:39]}  Kg8 {[%clk 0:00:01]} 41. Rxd3 {[%clk 0:01:39]}  h6 {[%clk 0:00:02]} 42. Kf4 {[%clk 0:01:37]}  hxg5+ {[%clk 0:00:01]} 43. hxg5 {[%clk 0:01:38]}  Kf8 {[%clk 0:00:02]} 44. Rd7 {[%clk 0:01:38]}  Ke8 {[%clk 0:00:02]} 45. Ra7 {[%clk 0:01:37]}  Kf8 {[%clk 0:00:02]} 46. Rxf7+ {[%clk 0:01:37]}  Kxf7 {[%clk 0:00:02]} 47. Ke5 {[%clk 0:01:38]}  Ke7 {[%clk 0:00:02]} 48. f4 {[%clk 0:01:38]}  Kf7 {[%clk 0:00:02]} 49. Kd6 {[%clk 0:01:38]} 1-0


[Site "https://www.chess.com"]

[Event "Titled Tuesday Blitz October 11 Early 2022"]
[White "Carrasco Miranda, Andres"]
[Black "Shaik Sumer Arsh"]
[WhiteFideId "3405990"]
[BlackFideId "45020000"]
[WhiteElo "2183"]
[BlackElo "2190"]
[Result "1-0"]
[Round "10"]
[TimeControl "180+1"]
[Date "2022.10.12"]
[WhiteClock "0:00:06"]
[BlackClock "0:00:05"]

1. d4 {[%clk 0:03:00]}  Nf6 {[%clk 0:02:58]} 2. c4 {[%clk 0:03:00]}  e6 {[%clk 0:02:59]} 3. g3 {[%clk 0:03:00]}  d5 {[%clk 0:02:57]} 4. Bg2 {[%clk 0:03:00]}  Bb4+ {[%clk 0:02:55]} 5. Nd2 {[%clk 0:02:59]}  dxc4 {[%clk 0:02:50]} 6. Qa4+ {[%clk 0:02:58]}  Bd7 {[%clk 0:02:47]} 7. Qxb4 {[%clk 0:02:58]}  Nc6 {[%clk 0:02:43]} 8. Qxc4 {[%clk 0:02:57]}  Ne7 {[%clk 0:02:43]} 9. Ngf3 {[%clk 0:02:54]}  Bc6 {[%clk 0:02:43]} 10. O-O {[%clk 0:02:52]}  O-O {[%clk 0:02:43]} 11. Ne5 {[%clk 0:02:49]}  Bxg2 {[%clk 0:02:43]} 12. Kxg2 {[%clk 0:02:50]}  c6 {[%clk 0:02:43]} 13. Ndf3 {[%clk 0:02:49]}  Ne4 {[%clk 0:02:42]} 14. Qc2 {[%clk 0:02:48]}  Nd6 {[%clk 0:02:39]} 15. Rd1 {[%clk 0:02:43]}  f6 {[%clk 0:02:38]} 16. Nc4 {[%clk 0:02:42]}  Ndf5 {[%clk 0:02:37]} 17. e4 {[%clk 0:02:40]}  Nh6 {[%clk 0:02:36]} 18. Bxh6 {[%clk 0:02:39]}  gxh6 {[%clk 0:02:37]} 19. Qd2 {[%clk 0:02:34]}  Kg7 {[%clk 0:02:37]} 20. e5 {[%clk 0:02:29]}  f5 {[%clk 0:02:37]} 21. Nd6 {[%clk 0:02:29]}  f4 {[%clk 0:02:27]} 22. Nh4 {[%clk 0:02:15]}  Nd5 {[%clk 0:02:23]} 23. Re1 {[%clk 0:02:09]}  Qg5 {[%clk 0:01:58]} 24. Ne4 {[%clk 0:01:46]}  f3+ {[%clk 0:01:14]} 25. Nxf3 {[%clk 0:01:41]}  Qg4 {[%clk 0:01:14]} 26. Ng1 {[%clk 0:00:58]}  Rf7 {[%clk 0:00:41]} 27. f3 {[%clk 0:00:54]}  Qg6 {[%clk 0:00:40]} 28. Nc3 {[%clk 0:00:43]}  Nf4+ {[%clk 0:00:37]} 29. Kh1 {[%clk 0:00:41]}  Nh5 {[%clk 0:00:34]} 30. Ne4 {[%clk 0:00:38]}  Raf8 {[%clk 0:00:32]} 31. f4 {[%clk 0:00:36]}  Rf5 {[%clk 0:00:26]} 32. Nd6 {[%clk 0:00:32]}  Nxg3+ {[%clk 0:00:19]} 33. hxg3 {[%clk 0:00:31]}  Rh5+ {[%clk 0:00:17]} 34. Kg2 {[%clk 0:00:31]}  Qg4 {[%clk 0:00:15]} 35. Qe2 {[%clk 0:00:28]}  Qg6 {[%clk 0:00:14]} 36. Nf3 {[%clk 0:00:22]}  Rxf4 {[%clk 0:00:13]} 37. Rh1 {[%clk 0:00:19]}  Rg4 {[%clk 0:00:11]} 38. Rxh5 {[%clk 0:00:16]}  Rxg3+ {[%clk 0:00:11]} 39. Kf1 {[%clk 0:00:16]}  Qxh5 {[%clk 0:00:11]} 40. Ng1 {[%clk 0:00:05]}  Qh1 {[%clk 0:00:05]} 41. Qf2 {[%clk 0:00:05]}  Rg4 {[%clk 0:00:04]} 42. Qf6+ {[%clk 0:00:05]}  Kg8 {[%clk 0:00:04]} 43. Qf7+ {[%clk 0:00:05]}  Kh8 {[%clk 0:00:04]} 44. Qf8+ {[%clk 0:00:05]}  Rg8 {[%clk 0:00:05]} 45. Nf7# {[%clk 0:00:06]} 1-0


[Site "https://www.chess.com"]

[Event "Titled Tuesday Blitz October 11 Early 2022"]
[White "Ciuffoletti, Paolo"]
[Black "Rosenberg, Evan S"]
[WhiteFideId "807630"]
[BlackFideId "2019299"]
[WhiteElo "2143"]
[BlackElo "2409"]
[Result "1/2-1/2"]
[Round "10"]
[TimeControl "180+1"]
[Date "2022.10.12"]
[WhiteClock "0:00:13"]
[BlackClock "0:00:30"]

1. e4 {[%clk 0:03:00]}  e6 {[%clk 0:02:58]} 2. d4 {[%clk 0:03:00]}  d5 {[%clk 0:02:59]} 3. e5 {[%clk 0:03:00]}  c5 {[%clk 0:02:59]} 4. c3 {[%clk 0:03:00]}  Nc6 {[%clk 0:02:59]} 5. Nf3 {[%clk 0:03:01]}  Qb6 {[%clk 0:03:00]} 6. a3 {[%clk 0:03:01]}  c4 {[%clk 0:02:59]} 7. Nbd2 {[%clk 0:03:00]}  Na5 {[%clk 0:03:00]} 8. Rb1 {[%clk 0:02:59]}  Bd7 {[%clk 0:02:59]} 9. Be2 {[%clk 0:02:57]}  Ne7 {[%clk 0:02:56]} 10. O-O {[%clk 0:02:57]}  Nc8 {[%clk 0:02:53]} 11. Re1 {[%clk 0:02:51]}  h6 {[%clk 0:02:53]} 12. Nf1 {[%clk 0:02:47]}  Qc7 {[%clk 0:02:45]} 13. Be3 {[%clk 0:02:38]}  Nb6 {[%clk 0:02:44]} 14. N3d2 {[%clk 0:02:33]}  Ba4 {[%clk 0:02:38]} 15. Qc1 {[%clk 0:02:32]}  Nb3 {[%clk 0:02:30]} 16. Nxb3 {[%clk 0:02:31]}  Bxb3 {[%clk 0:02:30]} 17. Nd2 {[%clk 0:02:24]}  a5 {[%clk 0:02:17]} 18. Nxb3 {[%clk 0:02:16]}  cxb3 {[%clk 0:02:17]} 19. Bb5+ {[%clk 0:02:10]}  Kd8 {[%clk 0:02:16]} 20. f4 {[%clk 0:02:03]}  a4 {[%clk 0:02:16]} 21. Qd1 {[%clk 0:01:44]}  Nc4 {[%clk 0:02:15]} 22. Qd3 {[%clk 0:01:28]}  Ra5 {[%clk 0:02:12]} 23. Bxc4 {[%clk 0:01:23]}  Qxc4 {[%clk 0:02:12]} 24. Qd2 {[%clk 0:01:17]}  g6 {[%clk 0:02:06]} 25. Bf2 {[%clk 0:01:10]}  Be7 {[%clk 0:02:02]} 26. Rf1 {[%clk 0:01:06]}  h5 {[%clk 0:01:59]} 27. Rbe1 {[%clk 0:00:58]}  h4 {[%clk 0:01:58]} 28. g4 {[%clk 0:00:55]}  hxg3 {[%clk 0:01:58]} 29. hxg3 {[%clk 0:00:54]}  Kd7 {[%clk 0:01:56]} 30. Kg2 {[%clk 0:00:54]}  Raa8 {[%clk 0:01:53]} 31. Rh1 {[%clk 0:00:53]}  Rag8 {[%clk 0:01:46]} 32. g4 {[%clk 0:00:48]}  b5 {[%clk 0:01:33]} 33. Rxh8 {[%clk 0:00:38]}  Rxh8 {[%clk 0:01:33]} 34. f5 {[%clk 0:00:26]}  gxf5 {[%clk 0:01:27]} 35. gxf5 {[%clk 0:00:25]}  Rg8+ {[%clk 0:01:27]} 36. Kf3 {[%clk 0:00:25]}  Bg5 {[%clk 0:01:26]} 37. Be3 {[%clk 0:00:22]}  Bxe3 {[%clk 0:01:18]} 38. Qxe3 {[%clk 0:00:21]}  Rh8 {[%clk 0:01:10]} 39. fxe6+ {[%clk 0:00:20]}  fxe6 {[%clk 0:01:10]} 40. Rg1 {[%clk 0:00:19]}  Rh3+ {[%clk 0:01:08]} 41. Rg3 {[%clk 0:00:19]}  Qf1+ {[%clk 0:01:08]} 42. Qf2 {[%clk 0:00:18]}  Qd3+ {[%clk 0:01:07]} 43. Kg4 {[%clk 0:00:16]}  Rxg3+ {[%clk 0:01:01]} 44. Qxg3 {[%clk 0:00:16]}  Qe2+ {[%clk 0:01:02]} 45. Qf3 {[%clk 0:00:15]}  Qxf3+ {[%clk 0:00:45]} 46. Kxf3 {[%clk 0:00:14]}  Ke7 {[%clk 0:00:38]} 47. Kf4 {[%clk 0:00:13]}  Kf7 {[%clk 0:00:38]} 48. Kg5 {[%clk 0:00:12]}  Kg7 {[%clk 0:00:38]} 49. Kh5 {[%clk 0:00:13]}  Kh7 {[%clk 0:00:37]} 50. Kg5 {[%clk 0:00:13]}  Kg7 {[%clk 0:00:37]} 51. Kh5 {[%clk 0:00:13]}  Kh7 {[%clk 0:00:30]} 52. Kg5 {[%clk 0:00:13]}  Kg7 {[%clk 0:00:30]} 1/2-1/2


[Site "https://www.chess.com"]